{"text_format":"1","workbook":"xlsx","n_sheets":2,"sheets":["Pasiūlymas","Subtiekėjai ir priedai"],"not_rendered":{"charts":0,"images":0,"macros":1,"external_links":0,"defined_names":0,"comments":0,"pivot_tables":0},"unopened":[],"bounds":{"document_bytes":16777216,"sheet_cells":100000,"rows_first":2000,"rows_last":500,"rows_between":2000,"halvings":0,"cell_chars":16384,"cell_head_chars":4096},"cells_cut":0,"cells_raw":0,"read":"whole","date_system":"1900"}

{"sheet":"Pasiūlymas","index":0,"n_rows":292,"n_cols":7,"rows_kept":292,"cut":false,"hidden":false,"merged":[[29,0,29,2],[29,3,29,5],[11,0,11,1],[11,2,11,5],[12,0,12,1],[12,2,12,5],[13,0,13,1],[13,2,13,5],[14,0,14,1],[14,2,14,5],[15,0,15,1],[15,2,15,5],[16,0,16,1],[16,2,16,5],[17,0,17,1],[17,2,17,5],[18,0,18,1],[18,2,18,5],[23,0,23,5],[19,0,19,1],[20,0,20,1],[19,2,19,5],[20,2,20,5],[22,0,22,5],[27,0,27,5],[28,0,28,5],[24,0,24,5],[25,0,25,5],[26,0,26,5]]}
[]
["PIRKIMO SĄLYGŲ PRIEDAS \"PASIŪLYMO FORMA\""]
[]
["MEDIKAMENTŲ PIRKIMAS "]
[]
["Kam:","VšĮ LSMU Kauno ligoninė"]
[]
["Data:","2023-04-07"]
["Nr.:","07/04/23"]
["Vieta:","Klonėnų vs.1, Šrivintų r. sav., 19156"]
[]
["Tiekėjo pavadinimas / Ūkio subjektų grupės nariai:",null,"UAB Entafarma"]
["Tiekėjo kodas (-ai):",null,174443844]
["Tiekėjo adresas (-ai):",null,"Klonėnų vs.1, Šrivintų r. sav., 19156"]
["Tiekėjo PVM mokėtojo kodas(-ai):",null,"LT744438415"]
["Tiekėjo / Ūkio subjektų grupės atsakingo partnerio sąskaitos numeris, banko pavadinimas ir banko kodas (-ai):",null,"AB \"Swedbank\"  bankas, b.k. kodas 73000, A/s LT79 7300 0101 6149 4031"]
["Asmens atsakingo už pasiūlymą vardas, pavardė:",null,"Aurimas Kirkliauskas"]
["Asmens atsakingo už pasiūlymą telefono numeris, el. pašto adresas:",null,"8-618 82684, aurimas.kirkliauskas@entafarma.lt "]
["Tiekėjo / Ūkio subjektų grupės, laimėjimo atveju, pasirašančio sutartį asmens vardas, pavardė, pareigos:",null,"Aurimas Kirkliauskas, konkursų skyriaus vadovas"]
["Tiekėjo / Ūkio subjektų grupės, laimėjimo atveju, už sutarties vykdymą atsakingo asmens vardas, pavardė, telefono numeris, elektroninio pašto adresas:",null,"Agnė Andrijauskienė, 8-612 49288, ligonines@entafarma.lt"]
["(1) Tiekėjo / Ūkio subjektų grupės narių, (2) ūkio subjektų, kurių pajėgumais remiamasi, ir (3) jei pašalinimo pagrindai taikomi visiems subtiekėjams - subtiekėjų, kolegialaus priežiūros organo (Stebėtojų tarybos) ir (ar) kolegialaus valdymo organo (Valdybos) narių sąrašas (jei sudaryta) ir (ar) asmuo, kuriam suteikti VPĮ 46 str. 2 d. 2 p. numatyti įgaliojimai",null,null,null,null,null,{"$f":"IF((SUMPRODUCT(--(C21=\"\"))>0), \"Privaloma užpildyti, kai taikomi pašalinimo pagrindai\", \"\")","v":"Privaloma užpildyti, kai taikomi pašalinimo pagrindai"}]
[]
["Tiekėjo patvirtinimai:"]
["1. Šiuo pasiūlymu pažymime, kad sutinkame su visomi pirkimo sąlygomis, nustatytomis:"]
["1.1. viešojo pirkimo dokumentuose"]
["1.2. kituose pirkimo dokumentuose (jų paaiškinimuose, papildymuose)."]
["2. Patvirtiname, kad informacija ir duomenys, pateikti pasiūlyme, yra teisingi ir apima viską, ko reikia tinkamam sutarties įvykdymui"]
["3. Patvirtiname, kad jei pasiūlyme nenurodyti kolegialaus priežiūros/valdymo organų nariai, šie organai juridiniuose asmenyse nėra sudaryti (taikoma, kai pirkimo dokumentuose nustatyti pašalinimo pagrindai)."]
["4. Pasiūlymas galioja iki termino, nustatyto pirkimo dokumentuose."]
["5. Tais atvejais, kai pagal galiojančius teisės aktus tiekėjui nereikia mokėti PVM, jis nurodo priežastis, dėl kurių PVM nemoka:"]
[]
["1. DALIS","AMPICILINAS / SULBAKTAMAS 2G/1G MILTELIAI INJEKCINIAM TIRPALUI"]
[]
["Tiekėjo pasiūlymas:"]
["Nr.","Pavadinimas","Kiekis","Mato vienetas","Įkainis be PVM, Eur","Suma be PVM, Eur","Siūlomo produkto pavadinimas, dozė, kiekis pakuotėje, gamintojas. Būtina pažymėti, kuris vaistas yra  vardinis"]
["1.","Ampicilinas / Sulbaktamas 2g/1g milteliai injekciniam tirpalui"]
["1.1.","Ampicilinas / Sulbaktamas 2g/1g milteliai injekciniam tirpalui",10000,"fl.",0.627,{"$f":"IF(ISBLANK(E37),\"\", PRODUCT(C37,E37))","v":6270},"Ampicillin & Sulbactam 3g for inj. N16, RemDcion [Vardinis]"]
[null,null,null,null,"Suma be PVM",{"$f":"IF(F37=\"\",\"\",SUM(F37:F37))","v":6270},{"$f":"IF(F37=\"\",\"Neužpildytos visos objektų kainos\",\"\")","v":""}]
[null,null,"Taikomas PVM dydis (%)",5,"PVM suma",{"$f":"IF(OR(F38=\"\",D39=\"\"),\"\", PRODUCT(D39,F38)/100)","v":313.5},{"$f":"IF(D39=\"\", \"Nurodykite taikomą PVM dydį\", \"\")","v":""}]
[null,null,null,null,"Suma su PVM",{"$f":"IF(ISBLANK(F39), \"\", SUM(F38:F39))","v":6583.5}]
[]
[]
[]
[]
["4. DALIS","AKTYVINTA ANGLIS MILTELIAIS PO 50 - 61,5G GRANULĖS"]
[]
["Tiekėjo pasiūlymas:"]
["Nr.","Pavadinimas","Kiekis","Mato vienetas","Įkainis be PVM, Eur","Suma be PVM, Eur","Siūlomo produkto pavadinimas, dozė, kiekis pakuotėje, gamintojas. Būtina pažymėti, kuris vaistas yra  vardinis"]
["4.","Aktyvinta anglis milteliais po 50 - 61,5g granulės"]
["4.1.","Aktyvinta anglis milteliais po 50 - 61,5g granulės",20,"pak",12.33,{"$f":"IF(ISBLANK(E50),\"\", PRODUCT(C50,E50))","v":246.6},"Aktyvinta anglis (ACTIVE COAL) milteliai 50g N1, Steris Healthcares [Vardinis]"]
[null,null,null,null,"Suma be PVM",{"$f":"IF(F50=\"\",\"\",SUM(F50:F50))","v":246.6},{"$f":"IF(F50=\"\",\"Neužpildytos visos objektų kainos\",\"\")","v":""}]
[null,null,"Taikomas PVM dydis (%)",5,"PVM suma",{"$f":"IF(OR(F51=\"\",D52=\"\"),\"\", PRODUCT(D52,F51)/100)","v":12.33},{"$f":"IF(D52=\"\", \"Nurodykite taikomą PVM dydį\", \"\")","v":""}]
[null,null,null,null,"Suma su PVM",{"$f":"IF(ISBLANK(F52), \"\", SUM(F51:F52))","v":258.93}]
[]
[]
[]
["7. DALIS","FENILEFRINAS 10 MG/ML 1 ML TIRPALAS INJEKCIJOMS  "]
[]
["Tiekėjo pasiūlymas:"]
["Nr.","Pavadinimas","Kiekis","Mato vienetas","Įkainis be PVM, Eur","Suma be PVM, Eur","Siūlomo produkto pavadinimas, dozė, kiekis pakuotėje, gamintojas. Būtina pažymėti, kuris vaistas yra  vardinis"]
["7.","Fenilefrinas 10 mg/ml 1 ml tirpalas injekcijoms  "]
["7.1.","Fenilefrinas 10 mg/ml 1 ml tirpalas injekcijoms  ",60,"amp.",7,{"$f":"IF(ISBLANK(E62),\"\", PRODUCT(C62,E62))","v":420},"Frenin (Phenylephrine) 10mg/ml amp. 1ml N1, Samarth [Vardinis]"]
[null,null,null,null,"Suma be PVM",{"$f":"IF(F62=\"\",\"\",SUM(F62:F62))","v":420},{"$f":"IF(F62=\"\",\"Neužpildytos visos objektų kainos\",\"\")","v":""}]
[null,null,"Taikomas PVM dydis (%)",5,"PVM suma",{"$f":"IF(OR(F63=\"\",D64=\"\"),\"\", PRODUCT(D64,F63)/100)","v":21},{"$f":"IF(D64=\"\", \"Nurodykite taikomą PVM dydį\", \"\")","v":""}]
[null,null,null,null,"Suma su PVM",{"$f":"IF(ISBLANK(F64), \"\", SUM(F63:F64))","v":441}]
[]
[]
[]
["8. DALIS","GLIUKOZĖS INJ. TIRP. 40% 10 ML "]
[]
["Tiekėjo pasiūlymas:"]
["Nr.","Pavadinimas","Kiekis","Mato vienetas","Įkainis be PVM, Eur","Suma be PVM, Eur","Siūlomo produkto pavadinimas, dozė, kiekis pakuotėje, gamintojas. Būtina pažymėti, kuris vaistas yra  vardinis"]
["8.","Gliukozės  40% 10 ml  tirpalas injekcijoms"]
["8.1.","Gliukozės  40% 10 ml tirpalas injekcijoms",800,"amp.",0.38900000000000001,{"$f":"IF(ISBLANK(E74),\"\", PRODUCT(C74,E74))","v":311.2},"Glukoze (Glucose) 4000mg/10ml injekcinis tirpalas 10ml N10, Profarma [Vardinis]"]
[null,null,null,null,"Suma be PVM",{"$f":"IF(F74=\"\",\"\",SUM(F74:F74))","v":311.2},{"$f":"IF(F74=\"\",\"Neužpildytos visos objektų kainos\",\"\")","v":""}]
[null,null,"Taikomas PVM dydis (%)",5,"PVM suma",{"$f":"IF(OR(F75=\"\",D76=\"\"),\"\", PRODUCT(D76,F75)/100)","v":15.56},{"$f":"IF(D76=\"\", \"Nurodykite taikomą PVM dydį\", \"\")","v":""}]
[null,null,null,null,"Suma su PVM",{"$f":"IF(ISBLANK(F76), \"\", SUM(F75:F76))","v":326.76}]
[]
[]
[]
["10. DALIS","IMUNOGLOBULINAS NUO STABLIGĖS ARKLIŲ (ANTITETANINIS SERUMAS) 1500T  INJEKCIJOMS, UŽTAISAS "]
[]
["Tiekėjo pasiūlymas:"]
["Nr.","Pavadinimas","Kiekis","Mato vienetas","Įkainis be PVM, Eur","Suma be PVM, Eur","Siūlomo produkto pavadinimas, dozė, kiekis pakuotėje, gamintojas. Būtina pažymėti, kuris vaistas yra  vardinis"]
["10.","Imunoglobulinas nuo stabligės arklių (antitetaninis serumas) 1500T  injekcijoms, užtaisas "]
["10.1.","Imunoglobulinas nuo stabligės arklių (antitetaninis serumas) 1500T  injekcijoms, užtaisas ",10,"užtaisas",89,{"$f":"IF(ISBLANK(E86),\"\", PRODUCT(C86,E86))","v":890},"Tetanus Antitoxin (Premi-Tat) 1500 IU/ml 1ml N10, Premium Serums and Vaccines [Vardinis]"]
[null,null,null,null,"Suma be PVM",{"$f":"IF(F86=\"\",\"\",SUM(F86:F86))","v":890},{"$f":"IF(F86=\"\",\"Neužpildytos visos objektų kainos\",\"\")","v":""}]
[null,null,"Taikomas PVM dydis (%)",5,"PVM suma",{"$f":"IF(OR(F87=\"\",D88=\"\"),\"\", PRODUCT(D88,F87)/100)","v":44.5},{"$f":"IF(D88=\"\", \"Nurodykite taikomą PVM dydį\", \"\")","v":""}]
[null,null,null,null,"Suma su PVM",{"$f":"IF(ISBLANK(F88), \"\", SUM(F87:F88))","v":934.5}]
[]
[]
[]
["12. DALIS","KOLISTINAS 1000000 TV INJEKCIJOMS"]
[]
["Tiekėjo pasiūlymas:"]
["Nr.","Pavadinimas","Kiekis","Mato vienetas","Įkainis be PVM, Eur","Suma be PVM, Eur","Siūlomo produkto pavadinimas, dozė, kiekis pakuotėje, gamintojas. Būtina pažymėti, kuris vaistas yra  vardinis"]
["12.","Kolistinas 1000000 TV injekcijoms"]
["12.1.","Kolistinas 1000000 TV injekcijoms",1000,"fl.",1.74,{"$f":"IF(ISBLANK(E98),\"\", PRODUCT(C98,E98))","v":1740},"Elistin 1,000,000 IU inj. N1, Samarth [Vardinis]"]
[null,null,null,null,"Suma be PVM",{"$f":"IF(F98=\"\",\"\",SUM(F98:F98))","v":1740},{"$f":"IF(F98=\"\",\"Neužpildytos visos objektų kainos\",\"\")","v":""}]
[null,null,"Taikomas PVM dydis (%)",5,"PVM suma",{"$f":"IF(OR(F99=\"\",D100=\"\"),\"\", PRODUCT(D100,F99)/100)","v":87},{"$f":"IF(D100=\"\", \"Nurodykite taikomą PVM dydį\", \"\")","v":""}]
[null,null,null,null,"Suma su PVM",{"$f":"IF(ISBLANK(F100), \"\", SUM(F99:F100))","v":1827}]
[]
[]
[]
["13. DALIS","LABETALOLIS 100 MG"]
[]
["Tiekėjo pasiūlymas:"]
["Nr.","Pavadinimas","Kiekis","Mato vienetas","Įkainis be PVM, Eur","Suma be PVM, Eur","Siūlomo produkto pavadinimas, dozė, kiekis pakuotėje, gamintojas. Būtina pažymėti, kuris vaistas yra  vardinis"]
["13.","Labetalolis 100 mg"]
["13.1.","Labetalolis 100 mg",210,"tab.",0.48,{"$f":"IF(ISBLANK(E110),\"\", PRODUCT(C110,E110))","v":100.8},"Libetor 100mg tabletės N100, Johnlee Pharmaceuticals [Vardinis]"]
[null,null,null,null,"Suma be PVM",{"$f":"IF(F110=\"\",\"\",SUM(F110:F110))","v":100.8},{"$f":"IF(F110=\"\",\"Neužpildytos visos objektų kainos\",\"\")","v":""}]
[null,null,"Taikomas PVM dydis (%)",5,"PVM suma",{"$f":"IF(OR(F111=\"\",D112=\"\"),\"\", PRODUCT(D112,F111)/100)","v":5.04},{"$f":"IF(D112=\"\", \"Nurodykite taikomą PVM dydį\", \"\")","v":""}]
[null,null,null,null,"Suma su PVM",{"$f":"IF(ISBLANK(F112), \"\", SUM(F111:F112))","v":105.84}]
[]
[]
[]
["15. DALIS","LIČIO KARBONATAS 450 MG "]
[]
["Tiekėjo pasiūlymas:"]
["Nr.","Pavadinimas","Kiekis","Mato vienetas","Įkainis be PVM, Eur","Suma be PVM, Eur","Siūlomo produkto pavadinimas, dozė, kiekis pakuotėje, gamintojas. Būtina pažymėti, kuris vaistas yra  vardinis"]
["15.","Ličio karbonatas 450 mg "]
["15.1.","Ličio karbonatas 450 mg ",600,"tab.",0.14799999999999999,{"$f":"IF(ISBLANK(E122),\"\", PRODUCT(C122,E122))","v":88.8},"Intalith CR-450mg tab. N100, INTAS Pharmaceuticals [Vardinis]"]
[null,null,null,null,"Suma be PVM",{"$f":"IF(F122=\"\",\"\",SUM(F122:F122))","v":88.8},{"$f":"IF(F122=\"\",\"Neužpildytos visos objektų kainos\",\"\")","v":""}]
[null,null,"Taikomas PVM dydis (%)",5,"PVM suma",{"$f":"IF(OR(F123=\"\",D124=\"\"),\"\", PRODUCT(D124,F123)/100)","v":4.4400000000000004},{"$f":"IF(D124=\"\", \"Nurodykite taikomą PVM dydį\", \"\")","v":""}]
[null,null,null,null,"Suma su PVM",{"$f":"IF(ISBLANK(F124), \"\", SUM(F123:F124))","v":93.24}]
[]
[]
["24. DALIS","OKSACILINAS 1000MG MILTELIAI INJEKCINIAM TIRPALUI"]
[]
["Tiekėjo pasiūlymas:"]
["Nr.","Pavadinimas","Kiekis","Mato vienetas","Įkainis be PVM, Eur","Suma be PVM, Eur","Siūlomo produkto pavadinimas, dozė, kiekis pakuotėje, gamintojas. Būtina pažymėti, kuris vaistas yra  vardinis"]
["24.","Oksacilinas 1000mg milteliai injekciniam tirpalui"]
["24.1.","Oksacilinas 1000mg milteliai injekciniam tirpalui",2000,"fl.",0.78,{"$f":"IF(ISBLANK(E133),\"\", PRODUCT(C133,E133))","v":1560},"Oxacillin milteliai injekciniam tirpalui 1g N1, SWISS [Vardinis]"]
[null,null,null,null,"Suma be PVM",{"$f":"IF(F133=\"\",\"\",SUM(F133:F133))","v":1560},{"$f":"IF(F133=\"\",\"Neužpildytos visos objektų kainos\",\"\")","v":""}]
[null,null,"Taikomas PVM dydis (%)",5,"PVM suma",{"$f":"IF(OR(F134=\"\",D135=\"\"),\"\", PRODUCT(D135,F134)/100)","v":78},{"$f":"IF(D135=\"\", \"Nurodykite taikomą PVM dydį\", \"\")","v":""}]
[null,null,null,null,"Suma su PVM",{"$f":"IF(ISBLANK(F135), \"\", SUM(F134:F135))","v":1638}]
[]
[]
["26. DALIS","PIRAZINAMIDAS 500MG"]
[]
["Tiekėjo pasiūlymas:"]
["Nr.","Pavadinimas","Kiekis","Mato vienetas","Įkainis be PVM, Eur","Suma be PVM, Eur","Siūlomo produkto pavadinimas, dozė, kiekis pakuotėje, gamintojas. Būtina pažymėti, kuris vaistas yra  vardinis"]
["26.","Pirazinamidas 500mg"]
["26.1.","Pirazinamidas 500mg",800,"tabl",0.24,{"$f":"IF(ISBLANK(E144),\"\", PRODUCT(C144,E144))","v":192},"P-Zide 500mg tab. N200, Cadila [Vardinis]"]
[null,null,null,null,"Suma be PVM",{"$f":"IF(F144=\"\",\"\",SUM(F144:F144))","v":192},{"$f":"IF(F144=\"\",\"Neužpildytos visos objektų kainos\",\"\")","v":""}]
[null,null,"Taikomas PVM dydis (%)",5,"PVM suma",{"$f":"IF(OR(F145=\"\",D146=\"\"),\"\", PRODUCT(D146,F145)/100)","v":9.6},{"$f":"IF(D146=\"\", \"Nurodykite taikomą PVM dydį\", \"\")","v":""}]
[null,null,null,null,"Suma su PVM",{"$f":"IF(ISBLANK(F146), \"\", SUM(F145:F146))","v":201.6}]
[]
[]
[]
["27. DALIS","PIRIDOKSINO HIDROCHLORIDAS 100 MG INJ TIRPALAS"]
[]
["Tiekėjo pasiūlymas:"]
["Nr.","Pavadinimas","Kiekis","Mato vienetas","Įkainis be PVM, Eur","Suma be PVM, Eur","Siūlomo produkto pavadinimas, dozė, kiekis pakuotėje, gamintojas. Būtina pažymėti, kuris vaistas yra  vardinis"]
["27.","Piridoksino hidrochloridas 100 mg injekcinis tirpalas"]
["27.1.","Piridoksino hidrochloridas 100 mg injekcinis tirpalas",1000,"amp.",0.42199999999999999,{"$f":"IF(ISBLANK(E156),\"\", PRODUCT(C156,E156))","v":422},"Vitamine B6 100mg/2ml injekcinis tirpalas 2ml N10, Profarma [Vardinis]"]
[null,null,null,null,"Suma be PVM",{"$f":"IF(F156=\"\",\"\",SUM(F156:F156))","v":422},{"$f":"IF(F156=\"\",\"Neužpildytos visos objektų kainos\",\"\")","v":""}]
[null,null,"Taikomas PVM dydis (%)",5,"PVM suma",{"$f":"IF(OR(F157=\"\",D158=\"\"),\"\", PRODUCT(D158,F157)/100)","v":21.1},{"$f":"IF(D158=\"\", \"Nurodykite taikomą PVM dydį\", \"\")","v":""}]
[null,null,null,null,"Suma su PVM",{"$f":"IF(ISBLANK(F158), \"\", SUM(F157:F158))","v":443.1}]
[]
[]
[]
["28. DALIS","PRALIDOKSIMO CHLORIDAS 1000 MG INJ TIRPALAS"]
[]
["Tiekėjo pasiūlymas:"]
["Nr.","Pavadinimas","Kiekis","Mato vienetas","Įkainis be PVM, Eur","Suma be PVM, Eur","Siūlomo produkto pavadinimas, dozė, kiekis pakuotėje, gamintojas. Būtina pažymėti, kuris vaistas yra  vardinis"]
["28.","Pralidoksimo chloridas 1000 mg injekcinis tirpalas"]
["28.1.","Pralidoksimo chloridas 1000 mg injekcinis tirpalas",100,"fl.",27.66,{"$f":"IF(ISBLANK(E168),\"\", PRODUCT(C168,E168))","v":2766},"Neopam 1000mg inj. N2, Troikaa Pharmaceuticals [Vardinis]"]
[null,null,null,null,"Suma be PVM",{"$f":"IF(F168=\"\",\"\",SUM(F168:F168))","v":2766},{"$f":"IF(F168=\"\",\"Neužpildytos visos objektų kainos\",\"\")","v":""}]
[null,null,"Taikomas PVM dydis (%)",5,"PVM suma",{"$f":"IF(OR(F169=\"\",D170=\"\"),\"\", PRODUCT(D170,F169)/100)","v":138.30000000000001},{"$f":"IF(D170=\"\", \"Nurodykite taikomą PVM dydį\", \"\")","v":""}]
[null,null,null,null,"Suma su PVM",{"$f":"IF(ISBLANK(F170), \"\", SUM(F169:F170))","v":2904.3}]
[]
[]
[]
[]
["30. DALIS","TIRPALAS NEIGIAMAI ALERGENŲ KONTROLEI 2,5 ML ±0,5ML"]
[]
["Tiekėjo pasiūlymas:"]
["Nr.","Pavadinimas","Kiekis","Mato vienetas","Įkainis be PVM, Eur","Suma be PVM, Eur","Siūlomo produkto pavadinimas, dozė, kiekis pakuotėje, gamintojas. Būtina pažymėti, kuris vaistas yra  vardinis"]
["30.","Tirpalas neigiamai alergenų kontrolei 2,5 ml ±0,5ml"]
["30.1.","Tirpalas neigiamai alergenų kontrolei 2,5 ml ±0,5ml",3,"fl.",28,{"$f":"IF(ISBLANK(E181),\"\", PRODUCT(C181,E181))","v":84},"Skin Prick Test bottle x 2,5ml + 0,5ml K100, Inmunotek [Vardinis]"]
[null,null,null,null,"Suma be PVM",{"$f":"IF(F181=\"\",\"\",SUM(F181:F181))","v":84},{"$f":"IF(F181=\"\",\"Neužpildytos visos objektų kainos\",\"\")","v":""}]
[null,null,"Taikomas PVM dydis (%)",5,"PVM suma",{"$f":"IF(OR(F182=\"\",D183=\"\"),\"\", PRODUCT(D183,F182)/100)","v":4.2},{"$f":"IF(D183=\"\", \"Nurodykite taikomą PVM dydį\", \"\")","v":""}]
[null,null,null,null,"Suma su PVM",{"$f":"IF(ISBLANK(F183), \"\", SUM(F182:F183))","v":88.2}]
[]
[]
[]
["31. DALIS","TIRPALAS ODOS DŪRIMO TESTUI  3ML ± 0,5ML - MOTIEJUKAS"]
[]
["Tiekėjo pasiūlymas:"]
["Nr.","Pavadinimas","Kiekis","Mato vienetas","Įkainis be PVM, Eur","Suma be PVM, Eur","Siūlomo produkto pavadinimas, dozė, kiekis pakuotėje, gamintojas. Būtina pažymėti, kuris vaistas yra  vardinis"]
["31.","Tirpalas odos dūrimo testui  3ml ± 0,5ml - Motiejukas"]
["31.1.","Tirpalas odos dūrimo testui  3ml ± 0,5ml - Motiejukas",2,"fl.",28,{"$f":"IF(ISBLANK(E193),\"\", PRODUCT(C193,E193))","v":56},"Skin Prick Test bottle x 2,5ml + 0,5ml G110, Inmunotek [Vardinis]"]
[null,null,null,null,"Suma be PVM",{"$f":"IF(F193=\"\",\"\",SUM(F193:F193))","v":56},{"$f":"IF(F193=\"\",\"Neužpildytos visos objektų kainos\",\"\")","v":""}]
[null,null,"Taikomas PVM dydis (%)",5,"PVM suma",{"$f":"IF(OR(F194=\"\",D195=\"\"),\"\", PRODUCT(D195,F194)/100)","v":2.8},{"$f":"IF(D195=\"\", \"Nurodykite taikomą PVM dydį\", \"\")","v":""}]
[null,null,null,null,"Suma su PVM",{"$f":"IF(ISBLANK(F195), \"\", SUM(F194:F195))","v":58.8}]
[]
[]
[]
["32. DALIS","TIRPALAS ODOS DŪRIMO TESTUI 3ML ± 0,5ML - PAPRASTASIS LAZDYNAS "]
[]
["Tiekėjo pasiūlymas:"]
["Nr.","Pavadinimas","Kiekis","Mato vienetas","Įkainis be PVM, Eur","Suma be PVM, Eur","Siūlomo produkto pavadinimas, dozė, kiekis pakuotėje, gamintojas. Būtina pažymėti, kuris vaistas yra  vardinis"]
["32.","Tirpalas odos dūrimo testui 3ml ± 0,5ml - paprastasis lazdynas "]
["32.1.","Tirpalas odos dūrimo testui 3ml ± 0,5ml - paprastasis lazdynas ",2,"fl.",28,{"$f":"IF(ISBLANK(E205),\"\", PRODUCT(C205,E205))","v":56},"Skin Prick Test bottle x 2,5ml + 0,5ml T511, Inmunotek [Vardinis]"]
[null,null,null,null,"Suma be PVM",{"$f":"IF(F205=\"\",\"\",SUM(F205:F205))","v":56},{"$f":"IF(F205=\"\",\"Neužpildytos visos objektų kainos\",\"\")","v":""}]
[null,null,"Taikomas PVM dydis (%)",5,"PVM suma",{"$f":"IF(OR(F206=\"\",D207=\"\"),\"\", PRODUCT(D207,F206)/100)","v":2.8},{"$f":"IF(D207=\"\", \"Nurodykite taikomą PVM dydį\", \"\")","v":""}]
[null,null,null,null,"Suma su PVM",{"$f":"IF(ISBLANK(F207), \"\", SUM(F206:F207))","v":58.8}]
[]
[]
[]
["33. DALIS","TIRPALAS ODOS DŪRIMO TESTUI 3ML ±0,5ML  – HISTAMINO HCL"]
[]
["Tiekėjo pasiūlymas:"]
["Nr.","Pavadinimas","Kiekis","Mato vienetas","Įkainis be PVM, Eur","Suma be PVM, Eur","Siūlomo produkto pavadinimas, dozė, kiekis pakuotėje, gamintojas. Būtina pažymėti, kuris vaistas yra  vardinis"]
["33.","Tirpalas odos dūrimo testui 3ml ±0,5ml  – Histamino HCL"]
["33.1.","Tirpalas odos dūrimo testui 3ml ±0,5ml  – Histamino HCL",3,"fl.",28,{"$f":"IF(ISBLANK(E217),\"\", PRODUCT(C217,E217))","v":84},"Skin Prick Test bottle x 2,5ml + 0,5ml K200, Inmunotek [Vardinis]"]
[null,null,null,null,"Suma be PVM",{"$f":"IF(F217=\"\",\"\",SUM(F217:F217))","v":84},{"$f":"IF(F217=\"\",\"Neužpildytos visos objektų kainos\",\"\")","v":""}]
[null,null,"Taikomas PVM dydis (%)",5,"PVM suma",{"$f":"IF(OR(F218=\"\",D219=\"\"),\"\", PRODUCT(D219,F218)/100)","v":4.2},{"$f":"IF(D219=\"\", \"Nurodykite taikomą PVM dydį\", \"\")","v":""}]
[null,null,null,null,"Suma su PVM",{"$f":"IF(ISBLANK(F219), \"\", SUM(F218:F219))","v":88.2}]
[]
[]
[]
["34. DALIS","TIRPALAS ODOS DŪRIMO TESTUI 3ML ±0,5ML - ALTERNARIA ALTERNATA "]
[]
["Tiekėjo pasiūlymas:"]
["Nr.","Pavadinimas","Kiekis","Mato vienetas","Įkainis be PVM, Eur","Suma be PVM, Eur","Siūlomo produkto pavadinimas, dozė, kiekis pakuotėje, gamintojas. Būtina pažymėti, kuris vaistas yra  vardinis"]
["34.","Tirpalas odos dūrimo testui 3ml ±0,5ml - Alternaria alternata "]
["34.1.","Tirpalas odos dūrimo testui 3ml ±0,5ml - Alternaria alternata ",3,"fl.",28,{"$f":"IF(ISBLANK(E229),\"\", PRODUCT(C229,E229))","v":84},"Skin Prick Test bottle x 2,5ml + 0,5ml P901, Inmunotek [Vardinis]"]
[null,null,null,null,"Suma be PVM",{"$f":"IF(F229=\"\",\"\",SUM(F229:F229))","v":84},{"$f":"IF(F229=\"\",\"Neužpildytos visos objektų kainos\",\"\")","v":""}]
[null,null,"Taikomas PVM dydis (%)",5,"PVM suma",{"$f":"IF(OR(F230=\"\",D231=\"\"),\"\", PRODUCT(D231,F230)/100)","v":4.2},{"$f":"IF(D231=\"\", \"Nurodykite taikomą PVM dydį\", \"\")","v":""}]
[null,null,null,null,"Suma su PVM",{"$f":"IF(ISBLANK(F231), \"\", SUM(F230:F231))","v":88.2}]
[]
[]
[]
["35. DALIS","TIRPALAS ODOS DŪRIMO TESTUI 3ML ±0,5ML - CANDIDA ALBICANS"]
[]
["Tiekėjo pasiūlymas:"]
["Nr.","Pavadinimas","Kiekis","Mato vienetas","Įkainis be PVM, Eur","Suma be PVM, Eur","Siūlomo produkto pavadinimas, dozė, kiekis pakuotėje, gamintojas. Būtina pažymėti, kuris vaistas yra  vardinis"]
["35.","Tirpalas odos dūrimo testui 3ml ±0,5ml - Candida Albicans"]
["35.1.","Tirpalas odos dūrimo testui 3ml ±0,5ml - Candida Albicans",2,"fl.",28,{"$f":"IF(ISBLANK(E241),\"\", PRODUCT(C241,E241))","v":56},"Skin Prick Test bottle x 2,5ml + 0,5ml P904, Inmunotek [Vardinis]"]
[null,null,null,null,"Suma be PVM",{"$f":"IF(F241=\"\",\"\",SUM(F241:F241))","v":56},{"$f":"IF(F241=\"\",\"Neužpildytos visos objektų kainos\",\"\")","v":""}]
[null,null,"Taikomas PVM dydis (%)",5,"PVM suma",{"$f":"IF(OR(F242=\"\",D243=\"\"),\"\", PRODUCT(D243,F242)/100)","v":2.8},{"$f":"IF(D243=\"\", \"Nurodykite taikomą PVM dydį\", \"\")","v":""}]
[null,null,null,null,"Suma su PVM",{"$f":"IF(ISBLANK(F243), \"\", SUM(F242:F243))","v":58.8}]
[]
[]
[]
["36. DALIS","TIRPALAS ODOS DŪRIMO TESTUI 3ML ±0,5ML – DERM PTERONYSSINUS (NAMŲ ERKĖ) "]
[]
["Tiekėjo pasiūlymas:"]
["Nr.","Pavadinimas","Kiekis","Mato vienetas","Įkainis be PVM, Eur","Suma be PVM, Eur","Siūlomo produkto pavadinimas, dozė, kiekis pakuotėje, gamintojas. Būtina pažymėti, kuris vaistas yra  vardinis"]
["36.","Tirpalas odos dūrimo testui 3ml ±0,5ml – Derm Pteronyssinus (namų erkė) "]
["36.1.","Tirpalas odos dūrimo testui 3ml ±0,5ml – Derm Pteronyssinus (namų erkė) ",2,"fl.",28,{"$f":"IF(ISBLANK(E253),\"\", PRODUCT(C253,E253))","v":56},"Skin Prick Test bottle x 2,5ml + 0,5ml M601, Inmunotek [Vardinis]"]
[null,null,null,null,"Suma be PVM",{"$f":"IF(F253=\"\",\"\",SUM(F253:F253))","v":56},{"$f":"IF(F253=\"\",\"Neužpildytos visos objektų kainos\",\"\")","v":""}]
[null,null,"Taikomas PVM dydis (%)",5,"PVM suma",{"$f":"IF(OR(F254=\"\",D255=\"\"),\"\", PRODUCT(D255,F254)/100)","v":2.8},{"$f":"IF(D255=\"\", \"Nurodykite taikomą PVM dydį\", \"\")","v":""}]
[null,null,null,null,"Suma su PVM",{"$f":"IF(ISBLANK(F255), \"\", SUM(F254:F255))","v":58.8}]
[]
[]
[]
["37. DALIS","TIRPALAS ODOS DŪRIMO TESTUI 3ML ±0,5ML – DERM. FARINAE (NAMŲ ERKĖ) "]
[]
["Tiekėjo pasiūlymas:"]
["Nr.","Pavadinimas","Kiekis","Mato vienetas","Įkainis be PVM, Eur","Suma be PVM, Eur","Siūlomo produkto pavadinimas, dozė, kiekis pakuotėje, gamintojas. Būtina pažymėti, kuris vaistas yra  vardinis"]
["37.","Tirpalas odos dūrimo testui 3ml ±0,5ml – Derm. Farinae (namų erkė) "]
["37.1.","Tirpalas odos dūrimo testui 3ml ±0,5ml – Derm. Farinae (namų erkė) ",2,"fl.",28,{"$f":"IF(ISBLANK(E265),\"\", PRODUCT(C265,E265))","v":56},"Skin Prick Test bottle x 2,5ml + 0,5ml M602, Inmunotek [Vardinis]"]
[null,null,null,null,"Suma be PVM",{"$f":"IF(F265=\"\",\"\",SUM(F265:F265))","v":56},{"$f":"IF(F265=\"\",\"Neužpildytos visos objektų kainos\",\"\")","v":""}]
[null,null,"Taikomas PVM dydis (%)",5,"PVM suma",{"$f":"IF(OR(F266=\"\",D267=\"\"),\"\", PRODUCT(D267,F266)/100)","v":2.8},{"$f":"IF(D267=\"\", \"Nurodykite taikomą PVM dydį\", \"\")","v":""}]
[null,null,null,null,"Suma su PVM",{"$f":"IF(ISBLANK(F267), \"\", SUM(F266:F267))","v":58.8}]
[]
[]
[]
["38. DALIS","TIRPALAS ODOS DŪRIMO TESTUI 3ML ±0,5ML - KATĖS PLAUKAI"]
[]
["Tiekėjo pasiūlymas:"]
["Nr.","Pavadinimas","Kiekis","Mato vienetas","Įkainis be PVM, Eur","Suma be PVM, Eur","Siūlomo produkto pavadinimas, dozė, kiekis pakuotėje, gamintojas. Būtina pažymėti, kuris vaistas yra  vardinis"]
["38.","Tirpalas odos dūrimo testui 3ml ±0,5ml - Katės plaukai"]
["38.1.","Tirpalas odos dūrimo testui 3ml ±0,5ml - Katės plaukai",3,"fl.",28,{"$f":"IF(ISBLANK(E277),\"\", PRODUCT(C277,E277))","v":84},"Skin Prick Test bottle x 2,5ml + 0,5ml E801, Inmunotek [Vardinis]"]
[null,null,null,null,"Suma be PVM",{"$f":"IF(F277=\"\",\"\",SUM(F277:F277))","v":84},{"$f":"IF(F277=\"\",\"Neužpildytos visos objektų kainos\",\"\")","v":""}]
[null,null,"Taikomas PVM dydis (%)",5,"PVM suma",{"$f":"IF(OR(F278=\"\",D279=\"\"),\"\", PRODUCT(D279,F278)/100)","v":4.2},{"$f":"IF(D279=\"\", \"Nurodykite taikomą PVM dydį\", \"\")","v":""}]
[null,null,null,null,"Suma su PVM",{"$f":"IF(ISBLANK(F279), \"\", SUM(F278:F279))","v":88.2}]
[]
[]
[]
["39. DALIS","TIRPALAS ODOS DŪRIMO TESTUI 3ML ±0,5ML – ŠUNS PLAUKAI "]
[]
["Tiekėjo pasiūlymas:"]
["Nr.","Pavadinimas","Kiekis","Mato vienetas","Įkainis be PVM, Eur","Suma be PVM, Eur","Siūlomo produkto pavadinimas, dozė, kiekis pakuotėje, gamintojas. Būtina pažymėti, kuris vaistas yra  vardinis"]
["39.","Tirpalas odos dūrimo testui 3ml ±0,5ml – Šuns plaukai "]
["39.1.","Tirpalas odos dūrimo testui 3ml ±0,5ml – Šuns plaukai ",3,"fl.",28,{"$f":"IF(ISBLANK(E289),\"\", PRODUCT(C289,E289))","v":84},"Skin Prick Test bottle x 2,5ml + 0,5ml E802, Inmunotek [Vardinis]"]
[null,null,null,null,"Suma be PVM",{"$f":"IF(F289=\"\",\"\",SUM(F289:F289))","v":84},{"$f":"IF(F289=\"\",\"Neužpildytos visos objektų kainos\",\"\")","v":""}]
[null,null,"Taikomas PVM dydis (%)",5,"PVM suma",{"$f":"IF(OR(F290=\"\",D291=\"\"),\"\", PRODUCT(D291,F290)/100)","v":4.2},{"$f":"IF(D291=\"\", \"Nurodykite taikomą PVM dydį\", \"\")","v":""}]
[null,null,null,null,"Suma su PVM",{"$f":"IF(ISBLANK(F291), \"\", SUM(F290:F291))","v":88.2}]

{"sheet":"Subtiekėjai ir priedai","index":1,"n_rows":81,"n_cols":11,"rows_kept":81,"cut":false,"hidden":false,"merged":[[33,4,33,9],[31,4,31,9],[33,0,33,3],[31,0,31,3],[23,1,23,6],[26,1,26,6],[25,1,25,6],[24,1,24,6],[26,7,26,9],[25,7,25,9],[24,7,24,9],[23,7,23,9],[28,0,28,9],[17,0,17,9],[19,7,19,9],[19,1,19,6],[22,7,22,9],[21,7,21,9],[20,7,20,9],[22,1,22,6],[21,1,21,6],[20,1,20,6],[4,0,4,1],[5,5,5,7],[5,0,5,1],[1,0,2,10],[15,0,15,9],[6,5,6,7],[6,8,6,9],[6,0,6,1],[6,2,6,4],[5,2,5,4],[5,8,5,9],[4,8,4,9],[4,5,4,7],[4,2,4,4],[8,0,8,10],[10,8,10,9],[10,5,10,7],[10,2,10,4],[10,0,10,1],[13,5,13,7],[12,5,12,7],[11,5,11,7],[13,8,13,9],[12,8,12,9],[11,8,11,9],[13,0,13,1],[12,0,12,1],[11,0,11,1],[13,2,13,4],[12,2,12,4],[11,2,11,4]]}
[]
["Ūkio subjektai (įskaitant kvazisubtiekėjus - fiziniai asmenys, kuriuos ketinama įdarbinti pirkimo laimėjimo atveju), kurių pajėgumais tiekėjas remiasi, kad atitiktų keliamus kvalifikacijos reikalavimus:"]
[]
[]
["Pavadinimas*",null,"Kodas, adresas",null,null,"Perduodami įsipareigojimai",null,null,"Perduodamų įsipareigojimų dalis nuo visos pirkimo sutarties (Eur arba %)",null,"Kval. Reikalavimo Nr."]
[]
[]
[]
["Subtiekėjams / subteikėjams / subrangovams numatomos perduoti veiklos (privaloma nurodyti) ir šių ūkio subjektų pavadinimai (jei žinomi):"]
[]
["Pavadinimas",null,"Kodas, adresas",null,null,"Perduodama veikla*",null,null,"Perduodamos veiklos dalis nuo visos pirkimo sutarties (Eur arba %)"]
[]
[]
[]
[]
[]
[]
["Kartu su pasiūlymu pateikiami šie dokumentai:"]
[]
["Nr.","Dokumento  pavadinimas",null,null,null,null,null,"Dokumentas yra konfidencialus? Taip/Ne"]
["1","Jungtinės veiklos kopija (jei taikoma)"]
["2","Europos bendrasis viešųjų pirkimų dokumentas",null,null,null,null,null,"Ne"]
["3","Subtiekimo sutartis, ketinimų protokolas, preliminarios sutartys ar kiti dokumentai, patvirtinantys, kad laimėjus pirkimą tiekėjui bus prieinami kitų ūkio subjektų ištekliai (jei pasitelkiami kvalifikacijos atitikimui)",null,null,null,null,null,"Ne"]
[]
[]
[]
[]
[]
["Pasiūlyme nurodyta Prekės kaina, išskyrus jos sudedamąsias dalis, subtiekėjai, taip pat kita informacija, kuri teisės aktų nustatyta tvarka turi būti skelbiama arba kitokiu būdu viešai prieinama visuomenei, nėra laikoma konfidencialia informacija. Konfidencialią informaciją sudaro, visų pirma, komercinė (gamybinė) paslaptis ir konfidencialieji pasiūlymų aspektai. Informacija, kurią viešai skelbti įpareigoja Lietuvos Respublikos įstatymai, negali būti tiekėjo nurodoma kaip konfidenciali, todėl, tiekėjui nurodžius tokią informaciją kaip konfidencialią, perkančioji organizacija turi teisę ją skelbti. Jei tiekėjas nenurodo konfidencialios informacijos, laikoma, kad konfidencialios informacijos tiekėjo pasiūlyme nėra. Vadovaujantis Informacijos viešinimo Centrinėje viešųjų pirkimų informacinėje sistemoje tvarkos aprašu, patvirtintu Viešųjų pirkimų tarnybos direktoriaus 2017 m. birželio 19 d. įsakymu Nr. 1S-91 „Dėl Informacijos viešinimo Centrinėje viešųjų pirkimų informacinėje sistemoje tvarkos aprašo patvirtinimo“, perkančioji organizacija laimėjusio dalyvio pasiūlymą, išskyrus informaciją, kurią tiekėjas nurodė kaip konfidencialią, paskelbs CVP IS."]
[]
[]
["Tiekėjo arba jo įgalioto asmens pareigų pavadinimas:",null,null,null,"Konkursų skyriaus vadovas"]
[]
["Pasirašančio asmens vardas ir pavardė:",null,null,null,"Aurimas Kirkliauskas"]
[]
[]
[]
[]
[]
[]
[]
[]
[]
[]
[]
[]
[]
[]
[]
[]
[]
[]
[]
[]
[]
[]
[]
[]
[]
[]
[]
[]
[]
[]
[]
[]
[]
[]
[]
[]
[]
[]
[]
[]
[]
[]
[]
[]
[]
[]
["8124 2023-03-17 14:33:04"]